bitfinex/quotes_ETHUSD_20241203
["timestamp","ask_amount","ask_price","bid_price","bid_amount"]
[1733222572615,0.1,3615.6,3615.5,0.55981825]
[1733222574417,0.1,3615.8,3615.5,0.55981825]
[1733222574617,0.1,3615.6,3615.5,0.55981825]
[1733222576635,0.1,3615.8,3615.5,0.55981825]
[1733222578704,0.1,3615.6,3615.5,0.55981825]
[1733222578904,0.37545,3615.9,3615.5,0.55981825]
[1733222578905,0.1,3615.8,3615.5,0.55981825]
[1733222579908,0.47545,3615.9,3615.5,0.55981825]
[1733222580767,1.8545,3616.1,3615.5,0.55981825]
[1733222580918,1.5545,3616.4,3615.5,0.55981825]
[1733222581116,1.5545,3616.4,3615.5,0.83651825]
[1733222581367,1.6545,3616.4,3615.5,0.83651825]
[1733222581718,0.1,3616.2,3615.5,0.83651825]
[1733222582036,0.3,3616.2,3615.5,0.83651825]
[1733222582242,0.48545,3616.2,3615.5,0.83651825]
[1733222583727,0.2,3616.0,3615.5,0.83651825]
[1733222583930,1.5545,3615.9,3615.5,0.83651825]
[1733222584172,1.6545,3615.9,3615.5,0.83651825]
[1733222586464,0.1,3615.9,3615.5,0.83651825]
[1733222586917,0.2,3616.0,3615.5,0.83651825]
[1733222587119,0.1,3615.9,3615.5,0.83651825]
[1733222587316,0.2,3616.0,3615.5,0.83651825]
[1733222588321,1.7047,3616.4,3615.5,0.83651825]
[1733222588528,0.1,3616.6,3615.6,0.02373465]
[1733222588826,0.2,3616.7,3615.6,0.57373465]
[1733222589056,0.2,3616.7,3615.6,0.8267]
[1733222589569,0.2,3616.7,3615.7,1.45414432]
[1733222589858,0.2,3616.7,3616.3,0.55040895]
[1733222590776,0.3,3616.7,3616.3,0.55040895]
[1733222591971,0.1,3616.6,3616.3,0.55040895]
[1733222592467,0.2,3616.7,3616.3,0.55040895]
[1733222593064,0.1,3616.8,3616.3,0.55040895]
[1733222596284,0.1,3616.6,3616.3,0.55040895]
[1733222596452,1.6047,3616.4,3616.3,0.55040895]
[1733222597085,0.03456676,3616.5,3616.3,0.55040895]
[1733222597296,1.7047,3616.6,3616.3,0.55040895]
[1733222598194,1.7047,3616.6,3616.4,0.2767]
[1733222598496,1.914217,3616.6,3616.4,0.2767]
[1733222598673,0.03456654,3616.5,3616.4,0.2767]
[1733222598848,0.3,3616.4,3616.0,0.2767]
[1733222599054,0.2,3616.1,3616.0,0.2767]
[1733222599353,1.6047,3616.2,3614.9,0.2767]
[1733222599551,1.6047,3616.2,3615.9,0.55080947]
[1733222599789,0.3,3616.4,3615.9,0.55080947]
[1733222599790,1.9047,3616.4,3615.9,0.55080947]
[1733222601475,1.9047,3616.4,3614.4,1.55018711]
[1733222601476,1.9047,3616.4,3614.7,0.2767]
[1733222601686,1.9047,3616.4,3614.9,0.2767]
[1733222602889,1.9047,3616.4,3616.1,0.5577828]
[1733222607106,1.9047,3616.4,3614.9,0.2767]
[1733222607107,0.2,3616.2,3614.9,0.2767]
[1733222607392,0.3,3616.2,3614.9,0.2767]
[1733222607595,1.6047,3616.1,3614.9,0.2767]
[1733222608257,1.6047,3616.1,3615.8,0.2767]
[1733222608484,0.19047,3616.0,3615.8,0.2767]
[1733222609066,1.6047,3616.1,3615.8,0.2767]
[1733222610330,0.1,3616.2,3615.8,0.2767]
[1733222613227,0.2,3616.4,3615.8,0.2767]
[1733222614688,0.13456841,3616.3,3615.8,0.2767]
[1733222614890,0.1,3616.3,3615.8,0.2767]
[1733222616896,0.2,3616.4,3615.8,0.2767]
[1733222617321,0.1,3616.3,3615.8,0.2767]
[1733222619226,1.90494739,3616.3,3615.8,0.2767]
[1733222620211,0.1,3616.3,3615.8,0.2767]
[1733222620531,0.1,3616.3,3615.2,0.2765]
[1733222622554,0.1,3616.3,3616.2,0.2765]
[1733222623411,0.2,3616.4,3616.2,0.2765]
[1733222623660,0.1,3616.3,3616.2,0.2765]
[1733222623842,0.43839739,3616.3,3616.2,0.2765]
[1733222625284,1.9295,3616.6,3616.2,0.2765]
[1733222625471,0.1,3616.3,3616.2,0.2765]
[1733222635172,1.4544739,3616.5,3616.2,0.2765]
[1733222635480,0.1,3616.3,3616.2,0.2765]
[1733222636116,1.4544739,3616.5,3616.2,0.2765]
[1733222636287,0.1,3616.3,3616.2,0.2765]
[1733222636912,1.48904057,3616.5,3616.2,0.2765]
[1733222637213,1.5544739,3616.3,3616.2,0.2765]
[1733222637519,1.58904159,3616.3,3616.2,0.2765]
[1733222639068,1.5544739,3616.3,3616.2,0.2765]
[1733222641140,1.5544739,3616.3,3613.5,1.74325232]
[1733222641141,0.1,3616.3,3615.3,0.2765]
[1733222641342,0.1,3616.3,3616.2,0.83182499]
[1733222644962,1.4544739,3616.5,3616.2,0.83182499]
[1733222645341,0.1,3616.3,3616.2,0.83182499]
[1733222648280,1.5544739,3616.6,3616.2,0.83182499]
[1733222648576,0.1,3616.6,3616.2,0.83182499]
[1733222649389,1.6106,3617.4,3616.2,0.83182499]
[1733222649540,1.4544739,3617.2,3616.2,0.83182499]
[1733222649741,0.1,3617.5,3616.2,0.83182499]
[1733222649939,1.5106,3617.7,3616.4,0.2765]
[1733222650179,1.4544739,3617.6,3616.6,0.2765]
[1733222650974,1.4544739,3617.6,3617.5,0.55545411]
[1733222651500,1.5544739,3617.8,3617.5,0.55545411]
[1733222651665,0.2,3618.0,3617.5,0.55545411]
[1733222651666,1.5544739,3617.6,3617.5,0.55545411]
[1733222651859,1.5544739,3617.6,3617.5,0.83195411]
[1733222652056,0.55541029,3617.6,3617.5,0.83195411]
[1733222652297,1.5544739,3617.6,3617.5,0.83195411]
[1733222652659,0.2,3617.9,3617.5,0.83195411]
[1733222652859,1.4544739,3617.6,3617.5,0.83195411]
[1733222653078,1.4544739,3617.6,3617.5,0.55545411]
[1733222653398,0.3,3617.9,3617.5,0.55545411]
[1733222653555,0.1,3617.9,3617.5,0.55545411]
[1733222653758,1.5106,3618.4,3617.5,0.55545411]
[1733222653759,1.5544739,3618.3,3617.5,0.55545411]
[1733222653961,0.1,3618.2,3617.5,0.55545411]
[1733222654261,0.1,3618.0,3617.5,0.55545411]
[1733222654473,1.4544739,3618.1,3617.5,0.55545411]
[1733222654689,0.1,3618.0,3617.5,0.55545411]
[1733222654962,0.1,3618.0,3617.6,0.2765]
[1733222655160,1.5544739,3618.0,3617.6,0.2765]
[1733222656398,0.1,3618.0,3617.6,0.2765]
[1733222657765,1.4544739,3618.5,3617.6,0.2765]
[1733222658194,1.4544739,3618.5,3617.5,0.83195411]
[1733222658467,1.4544739,3618.5,3617.6,0.2286428]
[1733222658686,1.5544739,3618.7,3617.6,0.2286428]
[1733222658953,1.4544739,3618.7,3617.6,0.2286428]
[1733222659587,1.5544739,3618.7,3617.6,0.2286428]
[1733222659788,1.4544739,3618.7,3617.6,0.2286428]
[1733222660200,1.5106,3618.8,3617.6,0.2286428]
[1733222660404,2.2044739,3618.9,3617.6,0.2286428]
[1733222660612,2.2044739,3618.9,3618.1,1.7309739]
[1733222660613,0.75,3618.9,3618.1,1.7309739]
[1733222663046,0.75,3618.9,3618.3,1.4544739]
[1733222663402,0.75,3618.9,3618.1,1.7309739]
[1733222663623,0.75,3618.9,3618.8,0.55041457]
[1733222664794,0.75,3618.9,3617.1,1.4544739]
[1733222664795,1.5106,3618.8,3617.1,1.4544739]
[1733222665012,1.4544739,3618.3,3617.2,0.14544739]
[1733222665509,1.4544739,3618.3,3617.3,0.2765]
[1733222665707,1.4544739,3618.3,3618.2,0.56047841]
[1733222667247,2.9650739,3618.3,3618.2,0.56047841]
[1733222667598,1.5106,3618.3,3618.2,0.56047841]
[1733222667934,0.1,3618.4,3618.2,0.56047841]
[1733222668094,0.1,3618.4,3618.3,0.2765]
[1733222669445,0.28106,3618.4,3618.3,0.2765]
[1733222669598,0.28106,3618.4,3618.2,0.56047841]
[1733222671245,0.28106,3618.4,3618.3,0.2765]
[1733222671804,0.2,3618.5,3618.3,0.2765]
[1733222672000,0.1,3618.4,3618.3,0.2765]
[1733222672423,0.2,3618.7,3618.3,0.2765]
[1733222674611,0.48157422,3618.3,3618.2,0.56047841]
[1733222675303,1.6106,3618.4,3618.2,0.56047841]
[1733222675503,1.6106,3618.4,3618.3,0.2765]
[1733222675804,0.1,3618.4,3618.3,0.2765]
[1733222679300,0.1,3618.4,3618.2,46.62404068]
[1733222680449,0.1,3618.4,3618.2,47.17145636]
[1733222680947,0.2,3618.7,3618.2,47.17145636]
[1733222681109,0.1,3618.4,3618.2,47.17145636]
[1733222682341,0.06338073,3618.4,3618.2,47.17145636]
[1733222684144,0.2,3618.7,3618.2,47.17145636]
[1733222684443,0.06338073,3618.4,3618.2,47.17145636]
[1733222686156,1.68798073,3618.8,3618.2,47.17145636]
[1733222686534,0.06338073,3618.6,3618.2,47.17145636]
[1733222686744,0.55,3620.3,3618.6,0.3765]
[1733222686904,3.00514216,3619.8,3618.8,0.2765]
[1733222687104,3.00514216,3619.8,3619.0,0.3765]
[1733222687347,3.00514216,3619.8,3619.3,0.2765]
[1733222687645,3.30565638,3619.8,3619.3,0.2765]
[1733222688351,0.30051422,3619.8,3619.3,0.2765]
[1733222688555,3.00514216,3619.7,3619.3,0.2765]
[1733222689559,1.4521358,3619.4,3619.3,0.2765]
[1733222691367,3.0767358,3619.6,3619.3,0.82816236]
[1733222692261,1.4521358,3619.9,3619.5,0.2]
[1733222692680,1.4521358,3619.7,3619.5,0.2]
[1733222693845,1.4521358,3619.7,3619.6,0.2765]
[1733222694755,1.6246,3620.0,3619.6,0.2765]
[1733222694967,1.4521358,3619.9,3619.6,0.2765]
[1733222696478,1.6246,3620.0,3619.6,0.2765]
[1733222696639,1.4521358,3619.9,3619.6,0.2765]
[1733222698686,1.4521358,3619.7,3619.6,0.2765]
[1733222699874,1.4521358,3619.9,3619.6,0.2765]
[1733222701782,1.6246,3620.0,3619.6,0.2765]
[1733222702082,1.4521358,3620.1,3619.6,0.2765]
[1733222703063,1.4521358,3620.0,3619.6,0.2765]
[1733222703385,1.6246,3621.1,3619.7,23.1842818]
[1733222703540,1.6246,3621.1,3619.5,1.4521358]
[1733222703541,1.4521358,3620.9,3619.5,1.4521358]
[1733222703748,1.6246,3621.1,3619.5,1.4521358]
[1733222703951,0.03452551,3621.7,3620.2,0.2765]
[1733222704152,1.4521358,3620.9,3620.2,0.2765]
[1733222704353,1.4521358,3620.7,3620.2,0.2765]
[1733222704597,1.4521358,3620.5,3620.2,0.2765]
[1733222704753,3.0767358,3620.5,3620.2,0.2765]
[1733222705099,3.0767358,3620.5,3619.3,0.30412314]
[1733222705390,3.0767358,3620.5,3619.3,0.68828539]
[1733222705600,3.0767358,3620.5,3620.4,0.82471099]
[1733222707000,3.0767358,3620.5,3620.4,0.54821099]
[1733222707555,3.0767358,3620.7,3620.4,0.54821099]
[1733222707901,1.6246,3620.7,3620.5,0.2765]
[1733222708665,1.65912562,3620.7,3620.5,0.2765]
[1733222708862,1.65912563,3620.7,3620.5,0.2765]
[1733222709576,3.28010938,3620.9,3620.5,0.2765]
[1733222709777,0.03452562,3620.8,3620.5,0.2765]
[1733222709979,0.36598912,3620.8,3620.5,0.2765]
[1733222710787,1.4521358,3620.7,3620.5,0.2765]
[1733222710994,1.48666143,3620.7,3620.5,0.2765]
[1733222712007,1.4521358,3620.7,3620.5,0.2765]
[1733222712816,1.48666143,3620.7,3620.5,0.2765]
[1733222712981,1.78597829,3620.7,3620.4,0.54821099]
[1733222713183,1.78597829,3620.7,3620.4,0.82471099]
[1733222714126,0.33384249,3620.7,3620.4,0.82471099]
[1733222714288,1.4521358,3620.8,3620.4,0.82471099]
[1733222715029,1.5203,3621.5,3620.4,0.82471099]
[1733222715298,1.4521358,3621.1,3620.4,0.82471099]
[1733222715448,1.5203,3621.5,3620.4,0.82471099]
[1733222715449,1.4521358,3620.9,3620.4,0.82471099]
[1733222715622,2.9724358,3620.9,3620.4,0.82471099]
[1733222715806,1.4521358,3620.7,3620.4,0.54821099]
[1733222716139,1.81754358,3620.9,3620.4,0.54821099]
[1733222716140,2.9724358,3620.5,3620.4,0.54821099]
[1733222716939,3.5224358,3620.5,3618.9,0.2765]
[1733222717141,2.9724358,3619.9,3618.9,0.2765]
[1733222717346,1.4521358,3619.9,3619.8,0.54556709]
[1733222717547,2.9724358,3620.1,3619.8,0.82206709]
[1733222718943,1.4521358,3619.9,3619.8,0.82206709]
[1733222719151,0.55,3619.8,3619.0,0.2765]
[1733222719346,1.4521358,3619.5,3619.0,0.2765]
[1733222719561,2.9724358,3619.5,3619.0,0.2765]
[1733222720051,1.4521358,3619.3,3618.4,0.2765]
[1733222720267,1.4521358,3619.3,3618.6,0.2765]
[1733222720558,1.4521358,3619.3,3619.2,0.81537945]
[1733222720905,1.4521358,3619.3,3619.2,0.2765]
[1733222721109,2.0021358,3619.3,3619.2,0.2765]
[1733222721338,2.0021358,3619.3,3618.3,0.2765]
[1733222721539,1.4521358,3618.8,3618.5,0.2765]
[1733222721718,1.4521358,3618.6,3618.5,0.2765]
[1733222722309,1.4521358,3618.8,3618.5,0.2765]
[1733222722544,1.4521358,3618.8,3618.3,0.2765]
[1733222722744,1.4521358,3618.8,3618.5,0.2765]
[1733222723112,1.4521358,3618.8,3618.2,46.91252326]
[1733222723543,3.0040601,3619.1,3618.2,46.91252326]
[1733222723752,3.0040601,3619.1,3618.5,0.55375753]
[1733222723955,0.55,3619.4,3618.5,0.55375753]
[1733222723956,3.5540601,3619.4,3618.5,0.55375753]
[1733222724139,1.5203,3619.5,3618.6,0.74948007]
[1733222724460,1.5203,3619.5,3618.5,0.55375753]
[1733222724657,0.03453835,3619.4,3618.5,0.55375753]
[1733222725214,1.5203,3619.5,3618.2,46.91252326]
[1733222725420,0.03453838,3619.4,3618.2,46.91252326]
[1733222725728,0.03453838,3619.4,3619.2,0.5461294]
[1733222726568,0.0345383,3619.4,3619.2,0.5461294]
[1733222727414,0.55,3619.3,3619.2,0.5461294]
[1733222727614,0.55,3619.3,3618.2,46.91252326]
[1733222727856,0.55,3619.3,3618.3,0.0276342]
[1733222728066,0.55,3619.3,3618.3,0.42496777]
[1733222728361,1.5203,3619.5,3618.4,0.39733357]
[1733222728859,1.5203,3619.5,3619.1,0.54441584]
[1733222729059,3.03859942,3619.4,3618.2,46.91252326]
[1733222729267,3.03859942,3619.4,3619.0,0.56497861]
[1733222729636,3.0040601,3619.4,3619.0,0.56497861]
[1733222729848,0.03453942,3619.3,3618.2,46.62404068]
[1733222730066,3.0040601,3619.4,3618.2,46.62404068]
[1733222730240,0.55,3619.3,3618.2,46.62404068]
[1733222730485,1.5203,3619.0,3618.2,46.62404068]
[1733222731008,1.5203,3619.0,3618.7,0.55935782]
[1733222731379,3.0040601,3618.8,3618.7,0.55935782]
[1733222731687,4.97679611,3618.8,3618.7,0.55935782]
[1733222731889,4.97679611,3618.8,3618.2,46.62404068]
[1733222732112,3.0040601,3618.4,3618.2,46.62404068]
[1733222732332,1.5203,3618.3,3618.2,46.62404068]
[1733222739956,2.0924,3618.3,3618.2,46.62404068]
[1733222740112,2.60204601,3618.3,3618.2,46.62404068]
[1733222740355,2.60204601,3618.3,3618.2,42.65730468]
[1733222743213,2.0924,3618.3,3618.2,42.65730468]
[1733222743453,1.5424,3618.3,3618.2,42.65730468]
[1733222745865,1.5424,3618.3,3618.2,38.66292626]
[1733222746016,2.0924,3618.3,3618.2,38.66292626]
[1733222753023,0.3812391,3618.4,3618.2,38.66292626]
[1733222755953,1.5424,3618.3,3618.2,38.66292626]
[1733222761961,1.5424,3618.3,3618.2,39.21502615]
[1733222763167,1.5424,3618.3,3618.2,38.66292626]
[1733222767133,0.3812391,3618.4,3618.2,38.66292626]
[1733222776023,0.3812391,3618.4,3618.3,0.54846194]
[1733222777724,0.3812391,3618.4,3618.2,35.28317506]
[1733222779483,1.5273,3618.3,3618.2,35.28317506]
[1733222779726,1.45342848,3618.3,3618.2,35.28317506]
[1733222781234,2.98072848,3618.3,3618.2,31.31053657]
[1733222781886,3.27880133,3618.3,3618.2,31.31053657]
[1733222792330,0.03455112,3618.9,3618.2,31.31053657]
[1733222792331,1.5273,3618.8,3618.2,31.31053657]
[1733222792849,1.45342848,3618.6,3618.2,31.31053657]
[1733222793055,1.45342848,3618.6,3618.3,0.2765]
[1733222793255,1.45342848,3618.6,3618.2,31.31053657]
[1733222793426,1.5273,3618.8,3618.2,31.31053657]
[1733222793609,1.5273,3619.5,3618.3,1.5424]
[1733222793953,1.45342848,3618.9,3618.4,0.54388502]
[1733222794521,1.45342848,3618.9,3618.3,1.8189]
[1733222794720,1.45342848,3618.7,3618.3,1.5424]
[1733222795438,1.45342848,3618.5,3618.3,1.5424]
[1733222796411,1.45342848,3618.7,3618.3,1.5424]
[1733222796812,1.5273,3619.3,3618.3,1.5424]
[1733222797069,2.00567206,3620.1,3618.3,1.5424]
[1733222797070,1.45342848,3619.1,3618.3,1.5424]
[1733222797213,1.5273,3619.5,3618.4,0.2765]
[1733222797556,1.45342848,3619.5,3618.4,1.5424]
[1733222797711,1.45342848,3619.3,3618.4,1.5424]
[1733222798449,0.03454334,3619.2,3618.8,0.54016237]
[1733222798767,1.45342848,3619.1,3618.8,0.54016237]
[1733222798929,1.45342848,3619.1,3618.4,1.5424]
[1733222799670,3.00412375,3619.5,3618.5,0.54923236]
[1733222799862,3.00412375,3619.5,3618.6,1.5424]
[1733222800363,3.46072039,3619.5,3618.6,1.5424]
[1733222800659,3.00412375,3619.5,3618.6,1.5424]
[1733222802651,3.03866654,3619.5,3618.6,1.5424]
[1733222803169,3.00412375,3619.2,3618.6,1.5424]
[1733222803325,3.03866654,3619.5,3618.6,1.5424]
[1733222803525,0.45659665,3619.4,3618.6,1.5424]
[1733222805802,0.45659665,3619.4,3618.2,31.31053657]
[1733222805803,1.6119,3619.0,3618.2,31.31053657]
[1733222806008,3.00412375,3618.8,3618.2,32.81373657]
[1733222806482,4.61602375,3619.2,3618.2,33.35849741]
[1733222806806,0.46160238,3619.1,3618.2,33.35849741]
[1733222807306,3.00412375,3619.5,3618.3,1.5032]
[1733222807600,3.03866901,3619.5,3618.3,1.5032]
[1733222808172,3.03866901,3619.5,3618.4,0.2765]
[1733222808397,3.03866901,3619.5,3618.5,1.5032]
[1733222808708,3.00412375,3619.5,3618.5,1.5032]
[1733222808872,3.50027112,3619.5,3618.5,1.5032]
[1733222809073,3.46572613,3619.5,3618.5,1.5032]
[1733222809282,1.6119,3619.8,3618.5,1.7797]
[1733222809283,1.64644494,3619.8,3618.5,1.7797]
[1733222809486,1.6119,3619.8,3618.5,1.7797]
[1733222809787,1.6119,3619.8,3618.9,1.5032]
[1733222810304,1.64644122,3619.8,3618.9,1.5032]
[1733222811504,3.00412375,3619.6,3618.9,1.5032]
[1733222811660,0.49959856,3619.5,3618.9,1.5032]
[1733222812610,3.00412375,3619.2,3618.5,2.04462381]
[1733222812812,0.03454583,3619.1,3618.5,0.54142381]
[1733222812962,0.03454583,3619.1,3618.2,31.31053657]
[1733222813171,1.6119,3619.0,3618.2,31.31053657]
[1733222814419,0.03454839,3618.9,3618.2,31.31053657]
[1733222814772,1.6119,3619.0,3618.2,31.31053657]
[1733222815491,0.03454838,3618.9,3618.2,31.31053657]
[1733222815706,1.6119,3619.0,3618.2,31.31053657]
[1733222815905,0.49544391,3618.9,3618.2,31.31053657]
[1733222816141,3.49956766,3618.9,3618.2,31.31053657]
[1733222818699,3.49956766,3618.9,3618.2,27.37736391]
[1733222818947,0.0345489,3618.8,3618.2,27.37736391]
[1733222820441,3.00412375,3618.6,3618.2,27.37736391]
[1733222820595,0.35886727,3618.5,3618.2,27.37736391]
[1733222821550,0.55,3618.7,3618.2,27.37736391]
[1733222821777,0.55,3618.8,3618.2,27.37736391]
[1733222826775,1.6119,3618.7,3618.2,27.37736391]
[1733222827158,0.55,3618.8,3618.3,1.5032]
[1733222831171,0.55,3618.8,3618.2,27.37736391]
[1733222831371,0.57515174,3618.7,3618.2,27.37736391]
[1733222831614,4.0610845,3618.9,3618.2,27.37736391]
[1733222831905,1.105883,3619.0,3618.3,1.5217]
[1733222832278,1.6119,3619.1,3618.3,1.5217]
[1733222832602,0.03454787,3619.0,3618.3,1.5217]
[1733222833165,1.6119,3619.1,3618.3,1.5217]
[1733222833568,0.03454789,3619.0,3618.3,1.5217]
[1733222834226,3.00412375,3618.9,3618.2,27.37736391]
[1733222834529,0.03454855,3618.8,3618.2,27.37736391]
[1733222835913,3.00412375,3618.9,3618.2,27.37736391]
[1733222836702,0.03454886,3618.8,3618.2,27.37736391]
[1733222837015,0.55,3618.8,3618.2,27.37736391]
[1733222837317,1.12762092,3618.8,3618.2,27.37736391]
[1733222838971,1.5401,3618.7,3618.2,27.37736391]
[1733222839201,0.55,3618.4,3618.2,27.37736391]
[1733222839670,1.45350032,3618.3,3618.2,27.37736391]
[1733222840016,2.00350032,3618.3,3618.2,27.37736391]
[1733222840171,2.20385035,3618.3,3618.2,27.37736391]
[1733222841015,3.77850234,3618.3,3618.2,27.37736391]
[1733222841373,3.74395035,3618.3,3618.2,27.37736391]
[1733222841609,5.29695103,3618.3,3618.2,27.37736391]
[1733222843601,2.29045003,3618.3,3618.2,27.37736391]
[1733222843812,5.29695103,3618.3,3618.2,27.37736391]
[1733222851889,1.5401,3618.5,3618.2,27.37736391]
[1733222852228,3.006501,3618.9,3618.2,27.37736391]
[1733222852229,1.5401,3618.8,3618.2,27.37736391]
[1733222852392,3.006501,3618.9,3618.2,27.37736391]
[1733222853344,0.03455097,3618.8,3618.2,27.37736391]
[1733222853531,4.546601,3618.6,3618.2,27.37736391]
[1733222853713,0.55,3618.4,3618.2,27.37736391]
[1733222854099,3.556501,3618.3,3618.2,27.37736391]
[1733222854830,5.096601,3618.3,3618.2,27.37736391]
[1733222857494,0.55,3618.4,3618.2,27.37736391]
[1733222858947,0.5131152,3618.5,3618.2,27.37736391]
[1733222859153,0.0345509,3618.4,3618.2,27.37736391]
[1733222859660,0.38996761,3618.4,3618.2,27.37736391]
[1733222860353,0.35541671,3618.4,3618.2,27.37736391]
[1733222861563,1.5503,3618.3,3618.2,27.37736391]
[1733222861771,2.1003,3618.3,3618.2,27.37736391]
[1733222862766,5.106801,3618.3,3618.2,27.37736391]
[1733222863064,5.65647814,3618.3,3618.2,27.37736391]
[1733222864528,9.65647814,3618.3,3618.2,27.37736391]
[1733222866876,9.65647814,3618.3,3618.2,23.40049955]
[1733222867188,9.91521925,3618.3,3618.2,23.40049955]
[1733222868065,9.65647814,3618.3,3618.2,23.40049955]
[1733222869370,9.91512138,3618.3,3618.2,23.40049955]
[1733222870989,9.91512138,3618.3,3618.2,23.06969277]
[1733222871214,9.65647814,3618.3,3618.2,23.06969277]
[1733222871520,9.85647814,3618.3,3618.2,23.06969277]
[1733222871880,9.85647814,3618.3,3618.2,13.46836458]
[1733222872382,5.85647814,3618.3,3618.2,13.46836458]
[1733222874893,5.85647814,3618.3,3618.2,3.86703639]
[1733222875401,9.85647814,3618.3,3618.2,3.86703639]
[1733222882837,10.11498831,3618.3,3618.2,3.86703639]
[1733222883911,9.85647814,3618.3,3618.2,3.86703639]
[1733222884925,9.65647814,3618.3,3618.2,3.86703639]
[1733222885128,5.65647814,3618.3,3618.2,3.86703639]
[1733222885347,5.69103517,3618.3,3618.2,3.86703639]
[1733222885664,5.89103517,3618.3,3618.2,3.86703639]
[1733222885871,5.85647814,3618.3,3618.2,3.86703639]
[1733222886362,5.65647814,3618.3,3618.2,3.86703639]
[1733222887166,4.10617814,3618.3,3618.2,3.86703639]
[1733222887530,2.75363727,3618.3,3618.2,3.86703639]
[1733222888227,6.75363727,3618.3,3618.2,3.86703639]
[1733222888652,0.55,3618.2,3617.7,1.47932289]
[1733222888969,0.55,3618.2,3616.0,2.29752634]
[1733222888970,1.45396013,3617.8,3616.0,2.29752634]
[1733222889268,1.45396013,3617.4,3616.0,2.29752634]
[1733222889471,0.03456355,3617.3,3616.0,2.29752634]
[1733222889770,0.03456355,3617.3,3616.2,0.2765]
[1733222890467,1.48852367,3617.4,3616.2,0.2765]
[1733222890627,1.48852367,3617.4,3616.0,2.02102634]
[1733222890628,1.48852367,3617.4,3616.1,0.2765]
[1733222890829,1.45396013,3617.4,3616.1,0.2765]
[1733222891374,1.45396013,3617.6,3616.3,0.2765]
[1733222891674,0.03456512,3617.5,3616.4,0.17304601]
[1733222891971,0.03456512,3617.5,3616.5,1.4794]
[1733222892377,1.45396013,3617.6,3616.5,1.7559]
[1733222892589,1.48852464,3617.8,3616.5,1.7559]
[1733222893089,1.48852464,3617.8,3616.9,1.4794]
[1733222893384,1.45396013,3617.8,3617.1,1.4794]
[1733222894443,1.97592159,3617.9,3617.1,1.4794]
[1733222894782,3.42988172,3617.9,3617.1,1.4794]
[1733222895380,1.97592159,3617.9,3617.1,1.4794]
[1733222895543,1.97592159,3617.9,3617.3,1.4794]
[1733222896188,0.03455739,3618.7,3617.4,1.45396013]
[1733222896492,1.45396013,3618.8,3617.6,1.7559]
[1733222896793,0.03455419,3619.0,3617.6,1.4794]
[1733222896794,1.45396013,3618.2,3617.6,1.4794]
[1733222896942,0.14539601,3618.1,3617.6,1.4794]
[1733222897148,1.45396013,3618.0,3617.6,1.4794]
[1733222897697,3.00629115,3618.5,3617.6,1.4794]
[1733222897879,0.58455662,3618.4,3617.6,1.4794]
[1733222899763,3.00629115,3618.2,3617.6,1.4794]
[1733222899961,3.00629115,3617.9,3617.4,1.4794]
[1733222900168,0.30408505,3617.8,3617.4,1.4794]
[1733222904783,0.55,3617.7,3617.4,1.4794]
[1733222905095,0.55,3617.7,3617.3,0.02697893]
[1733222905792,0.55,3617.5,3617.3,0.02697893]
[1733222906292,0.55,3617.7,3617.3,0.02697893]
[1733222906459,0.55,3617.5,3617.3,0.02697893]
[1733222909063,0.55,3617.4,3617.3,0.02697893]
[1733222909270,0.55,3617.5,3617.3,0.02697893]
[1733222910773,0.58456357,3617.5,3617.3,0.02697893]
[1733222910968,0.58456392,3617.4,3617.3,0.02697893]
[1733222911278,1.01902289,3617.4,3617.3,0.02697893]
[1733222914262,0.55,3617.3,3616.8,1.4794]
[1733222916136,0.46902289,3617.4,3616.8,1.4794]
[1733222919507,0.55,3617.3,3616.8,1.4794]
[1733222923672,1.4544422,3617.0,3616.8,1.4794]
[1733222923869,1.4544422,3617.0,3615.4,0.2765]
[1733222923870,1.68944991,3617.0,3616.2,1.4794]
[1733222924100,1.4544422,3616.5,3616.2,1.4794]
[1733222925170,0.03456779,3616.4,3616.2,1.4794]
[1733222925374,1.4544422,3616.5,3616.2,1.4794]
[1733222925713,1.4544422,3616.5,3614.5,0.1]
[1733222925714,3.00954401,3616.4,3615.8,1.4794]
[1733222925912,0.33898326,3616.3,3615.8,1.4794]
[1733222926470,0.30441133,3616.3,3615.8,1.4794]
[1733222927218,1.5155,3616.2,3614.6,1.4794]
[1733222927515,1.55007537,3616.2,3614.6,1.4794]
[1733222927981,3.00954401,3616.0,3614.6,1.4794]
[1733222928184,3.00954401,3616.0,3614.5,0.2765]
[1733222928185,3.49594708,3616.0,3614.8,1.4794]
[1733222928782,0.48640307,3616.0,3614.8,1.4794]
[1733222928965,0.03457698,3616.1,3614.8,1.4794]
[1733222929166,0.55,3616.1,3614.8,1.4794]
[1733222930379,0.55,3616.1,3614.8,2.04241083]
[1733222930577,0.0345769,3616.0,3614.8,2.04241083]
[1733222930996,0.0345769,3616.0,3614.9,1.4794]
[1733222931164,0.21000769,3615.9,3614.9,1.4794]
[1733222931978,0.24458456,3615.9,3614.9,1.4794]
[1733222933007,1.5155,3615.8,3614.9,1.4794]
[1733222933809,0.03457912,3615.7,3614.9,1.4794]
[1733222934110,0.55,3615.7,3614.9,1.4794]
[1733222934314,0.23100868,3615.6,3614.9,1.4794]
[1733222937813,0.23100868,3615.6,3614.6,1.4794]
[1733222940379,1.5155,3615.8,3614.6,1.4794]
[1733222944640,1.5155,3615.8,3614.7,0.20631262]
[1733222944781,1.5155,3615.8,3614.8,0.20631262]
[1733222944995,1.5155,3615.8,3614.9,0.20631262]
[1733222945325,1.69150891,3615.8,3615.0,0.20631262]
[1733222945530,1.69150891,3615.8,3615.1,1.68571262]
[1733222945735,0.03457649,3615.7,3615.2,0.20631262]
[1733222945944,0.03457649,3615.7,3615.3,0.20631262]
[1733222946098,0.31814358,3615.6,3615.4,0.20631262]
[1733222946439,0.31814358,3615.6,3615.5,0.20632756]
[1733222946992,0.31814358,3615.6,3615.5,0.20635818]
[1733222947424,0.31814358,3615.6,3614.7,1.4794]
[1733222947843,1.5155,3615.5,3614.7,1.4794]
[1733222950309,0.18336436,3615.4,3614.7,1.4794]
[1733222951634,1.5155,3615.3,3614.1,1.4794]
[1733222951816,1.5155,3615.1,3614.2,0.54833574]
[1733222952003,0.03458285,3615.0,3614.1,1.4794]